bitfinex/quotes_SOLUSD_20260203
["timestamp","ask_amount","ask_price","bid_price","bid_amount"]
[1770091174453,15.84471773,104.23,104.19,25.57531045]
[1770091174955,15.84471773,104.23,104.19,12.30320501]
[1770091175249,2.57261229,104.22,104.19,12.30320501]
[1770091175446,15.84471773,104.22,104.19,12.30320501]
[1770091175649,15.84471773,104.22,104.19,9.79785008]
[1770091179360,38.35590864,104.29,104.19,9.79785008]
[1770091179361,33.55169325,104.32,104.22,2.50535493]
[1770091179537,33.55169325,104.32,104.26,13.27210544]
[1770091179538,13.27210544,104.31,104.26,13.27210544]
[1770091179737,13.27210544,104.28,104.23,2.50535493]
[1770091179943,13.27210544,104.27,104.23,15.77746037]
[1770091180158,13.27210544,104.27,104.24,2.50535493]
[1770091181160,22.8617475,104.28,104.24,12.09849088]
[1770091181358,25.43435979,104.28,104.24,12.09849088]
[1770091183257,13.19213576,104.27,104.24,12.09849088]
[1770091183466,2.57261229,104.26,104.23,2.50535493]
[1770091183759,15.84471773,104.25,104.22,9.59485985]
[1770091183941,15.84471773,104.26,104.23,9.59409276]
[1770091184858,2.57261229,104.26,104.23,9.59409276]
[1770091185160,15.84471773,104.26,104.23,9.59409276]
[1770091185862,15.84471773,104.26,104.22,12.10003362]
[1770091186244,25.43616745,104.26,104.22,12.10003362]
[1770091186940,15.84471773,104.25,104.21,38.76099527]
[1770091187141,13.27210544,104.24,104.21,38.76099527]
[1770091187365,15.84471773,104.24,104.21,9.59564034]
[1770091187743,13.27210544,104.24,104.21,12.10099527]
[1770091187944,15.84471773,104.24,104.21,12.10099527]
[1770091188544,15.84471773,104.28,104.24,2.50535493]
[1770091188758,2.57261229,104.27,104.24,2.50535493]
[1770091189149,15.84471773,104.27,104.24,2.50535493]
[1770091190549,2.57261229,104.27,104.24,12.09838938]
[1770091192276,2.57261229,104.27,104.24,2.50535493]
[1770091192564,2.57261229,104.27,104.23,12.07115532]
[1770091192565,2.45333131,104.26,104.23,12.07115532]
[1770091192784,25.31607478,104.27,104.23,12.07115532]
[1770091193544,25.31607478,104.27,104.23,12.07149632]
[1770091194869,15.72543675,104.27,104.23,12.07149632]
[1770091195664,25.3160754,104.27,104.23,12.07149632]
[1770091196171,23.97219343,104.29,104.24,2.47735424]
[1770091196172,25.31543414,104.28,104.24,2.47735424]
[1770091197058,25.31543414,104.28,104.24,12.07048106]
[1770091197449,15.72543675,104.27,104.24,2.47735424]
[1770091198459,15.72543675,104.27,104.23,12.0710429]
[1770091199362,33.56391376,104.28,104.25,2.47735424]
[1770091199363,2.45333131,104.28,104.25,2.47735424]
[1770091199963,15.72543675,104.28,104.24,2.47735424]
[1770091200171,2.45333131,104.27,104.24,2.47735424]
[1770091200855,15.72543675,104.27,104.24,2.47735424]
[1770091201170,2.45333131,104.26,104.23,33.57910552]
[1770091201554,2.45333131,104.26,104.23,12.0710429]
[1770091201754,15.72543675,104.26,104.23,12.0710429]
[1770091202358,15.72543675,104.25,104.22,12.07193187]
[1770091202547,2.45333131,104.24,104.21,9.59592538]
[1770091202747,15.72543675,104.24,104.21,9.59592538]
[1770091203189,15.72543675,104.24,104.2,12.07384947]
[1770091203388,13.27210544,104.21,104.19,0.2]
[1770091203683,13.27210544,104.2,104.19,0.2]
[1770091203976,15.72543675,104.21,104.19,0.2]
[1770091204148,13.27210544,104.21,104.19,0.2]
[1770091204355,13.27210544,104.21,104.19,2.67735424]
[1770091204555,13.27210544,104.21,104.19,9.79769531]
[1770091204755,13.27210544,104.21,104.19,0.2]
[1770091204756,15.72543675,104.21,104.19,0.2]
[1770091205981,13.27210544,104.2,104.19,0.2]
[1770091206478,13.29363639,104.2,104.19,0.2]
[1770091206782,15.7469677,104.21,104.19,0.2]
[1770091207480,15.7469677,104.26,104.21,2.47735424]
[1770091207859,15.7469677,104.26,104.21,15.77099063]
[1770091208077,15.7469677,104.26,104.22,2.47735424]
[1770091208467,13.29363639,104.25,104.22,2.47735424]
[1770091209365,13.29363639,104.25,104.22,12.07214319]
[1770091209770,12.04474233,104.26,104.22,12.07214319]
[1770091209965,13.29363639,104.26,104.23,2.47735424]
[1770091210583,15.7469677,104.27,104.23,2.47735424]
[1770091211279,15.7469677,104.26,104.23,12.07141461]
[1770091211480,15.7469677,104.26,104.22,12.07196783]
[1770091211682,9.59072824,104.27,104.21,13.29363639]
[1770091211683,15.7469677,104.25,104.21,2.47735424]
[1770091211872,15.7469677,104.25,104.21,12.07284227]
[1770091212484,13.29363639,104.24,104.21,2.47735424]
[1770091212783,13.29363639,104.24,104.21,12.07326197]
[1770091212965,15.7469677,104.25,104.21,12.07326197]
[1770091213365,25.33952481,104.25,104.21,12.07326197]
[1770091213772,15.7469677,104.24,104.21,2.47735424]
[1770091214585,25.33952481,104.25,104.21,12.0730137]
[1770091214878,15.7469677,104.25,104.21,12.0730137]
[1770091216066,13.29363639,104.24,104.21,12.0730137]
[1770091216266,15.7469677,104.24,104.21,12.0730137]
[1770091216684,15.7469677,104.24,104.21,2.47735424]
[1770091216888,15.7469677,104.24,104.21,12.07329809]
[1770091217477,15.2669677,104.24,104.2,2.47735424]
[1770091217987,15.2669677,104.24,104.21,2.47735424]
[1770091218378,9.59238659,104.25,104.21,12.07316606]
[1770091218695,13.29363639,104.24,104.21,2.47735424]
[1770091220298,12.0457179,104.25,104.2,2.52748621]
[1770091220299,13.29363639,104.23,104.2,2.52748621]
[1770091220474,15.80974143,104.21,104.19,0.2]
[1770091220668,13.29363639,104.2,104.19,0.2]
[1770091220987,13.29363639,104.21,104.19,0.2]
[1770091221201,15.80974143,104.21,104.19,0.2]
[1770091222586,2.51610504,104.21,104.19,0.2]
[1770091222776,15.80974143,104.21,104.19,0.2]
[1770091223088,25.40613062,104.21,104.19,0.2]
[1770091224670,12.10843117,104.25,104.2,2.52748621]
[1770091224868,15.80974143,104.22,104.19,12.3250028]
[1770091225069,15.80974143,104.22,104.19,2.72748621]
[1770091225373,13.29363639,104.21,104.19,2.72748621]
[1770091225573,2.51610504,104.22,104.19,2.72748621]
[1770091225774,13.29363639,104.22,104.19,2.72748621]
[1770091227793,11.77363639,104.22,104.19,2.72748621]
[1770091228372,7.83161592,104.22,104.19,2.72748621]
[1770091229707,0.93425657,104.19,104.14,12.12968676]
[1770091229868,5.31551088,104.17,104.14,12.12968676]
[1770091230077,5.31551088,104.17,104.15,2.52748621]
[1770091230397,13.30171027,104.17,104.15,2.52748621]
[1770091232091,13.30171027,104.19,104.16,2.52748621]
[1770091232306,22.89863925,104.2,104.16,2.52748621]
[1770091232978,13.30171027,104.19,104.16,2.52748621]
[1770091233490,13.30171027,104.19,104.16,12.12789037]
[1770091233686,13.30171027,104.2,104.17,2.52748621]
[1770091233989,13.30171027,104.19,104.17,2.52748621]
[1770091236696,13.30171027,104.2,104.17,2.52748621]
[1770091236896,13.30171027,104.19,104.17,2.52748621]
[1770091237081,13.30171027,104.19,104.16,2.52748621]
[1770091237284,9.59674116,104.21,104.18,12.12585835]
[1770091237285,13.30171027,104.21,104.18,12.12585835]
[1770091237490,23.83032081,104.22,104.18,2.52748621]
[1770091237695,13.30171027,104.21,104.18,2.52748621]
[1770091238693,22.89801628,104.21,104.18,2.52748621]
[1770091240777,13.30171027,104.2,104.18,2.52748621]
[1770091241503,22.89892817,104.2,104.18,2.52748621]
[1770091242497,22.89892817,104.2,104.16,2.52748621]
[1770091242498,13.30171027,104.19,104.16,2.52748621]
[1770091242697,13.30171027,104.18,104.16,2.52748621]
[1770091242880,13.30171027,104.19,104.16,2.52748621]
[1770091244995,10.52410779,104.2,104.16,12.12805757]
[1770091245203,13.02171027,104.19,104.16,2.52748621]
[1770091246401,13.30171027,104.18,104.16,2.52748621]
[1770091246701,13.30171027,104.18,104.15,2.52748621]
[1770091247207,22.90086823,104.18,104.15,2.52748621]
[1770091248802,23.82069071,104.18,104.15,2.52748621]
[1770091248980,22.90086823,104.18,104.15,2.52748621]
[1770091250409,14.91885101,104.18,104.15,2.52748621]
[1770091251309,5.31969305,104.17,104.15,2.52748621]
[1770091252196,14.91885101,104.18,104.15,2.52748621]
[1770091252393,9.59915796,104.18,104.15,2.52748621]
[1770091252702,23.9948825,104.19,104.16,2.40236075]
[1770091252703,10.51155481,104.19,104.16,2.40236075]
[1770091252909,5.31969305,104.19,104.16,2.40236075]
[1770091253489,14.91772616,104.19,104.16,2.40236075]
[1770091254110,10.50947982,104.2,104.17,2.40236075]
[1770091254287,15.82917287,104.2,104.17,2.40236075]
[1770091254688,5.31969305,104.19,104.17,2.40236075]
[1770091254907,5.31969305,104.18,104.16,2.40236075]
[1770091255407,0.91112996,104.19,104.15,2.40236075]
[1770091255408,5.31969305,104.17,104.15,2.40236075]
[1770091255905,9.59918794,104.18,104.15,12.00382802]
[1770091255906,5.31969305,104.18,104.15,12.00382802]
[1770091256095,14.91847821,104.18,104.15,12.00382802]
[1770091256297,14.91847821,104.18,104.16,2.40236075]
[1770091257209,6.22776492,104.17,104.13,2.60236075]
[1770091257413,5.31969305,104.16,104.13,2.60236075]
[1770091257588,14.91941564,104.17,104.14,2.40236075]
[1770091258311,5.31969305,104.16,104.14,2.40236075]
[1770091259116,14.91941564,104.17,104.14,2.40236075]
[1770091259909,5.31969305,104.16,104.14,2.40236075]
[1770091260724,9.59785008,104.19,104.15,2.40236075]
[1770091261022,15.82266108,104.19,104.15,9.60148202]
[1770091261208,15.82266108,104.19,104.16,2.40236075]
[1770091261900,6.22384889,104.17,104.14,61.6]
[1770091262219,6.22384889,104.17,104.14,64.00236075]
[1770091262718,5.31969305,104.16,104.14,64.00236075]
[1770091262903,5.31969305,104.16,104.14,2.40236075]
[1770091263593,15.82390951,104.17,104.14,2.40236075]
[1770091264800,15.82390951,104.17,104.13,2.60236075]
[1770091265011,6.22102837,104.15,104.13,0.2]
[1770091265211,9.77414405,104.15,104.13,0.2]
[1770091266121,0.70041666,104.13,104.09,2.40236075]
[1770091266330,8.87280873,104.15,104.09,2.40236075]
[1770091266331,9.57231728,104.12,104.09,2.40236075]
[1770091266619,9.57231728,104.13,104.09,12.00936887]
[1770091266798,9.57231728,104.13,104.09,2.40236075]
[1770091267119,18.47711145,104.12,104.09,2.40236075]
[1770091267500,9.5714196,104.14,104.1,2.40236075]
[1770091267701,0.69861087,104.13,104.09,2.40236075]
[1770091267905,9.5714196,104.12,104.09,2.40236075]
[1770091268306,8.87280873,104.12,104.09,2.40236075]
[1770091268503,5.32592532,104.12,104.09,2.40236075]
[1770091268710,6.02364882,104.13,104.09,12.009419]
[1770091269102,15.62716407,104.13,104.09,12.009419]
[1770091269921,5.32592532,104.12,104.09,2.40236075]
[1770091270405,10.29891166,104.14,104.1,2.40236075]
[1770091270597,15.62483698,104.14,104.1,2.40236075]
[1770091270792,5.32592532,104.13,104.1,2.40236075]
[1770091271207,14.92945128,104.13,104.1,2.40236075]
[1770091272201,10.29837846,104.13,104.09,12.00934874]
[1770091272519,14.92945128,104.13,104.09,2.40236075]
[1770091272817,15.62430378,104.13,104.09,2.40236075]
[1770091273720,15.62430378,104.13,104.1,2.40236075]
[1770091273915,15.62430378,104.13,104.09,71.20684203]
[1770091273916,0.69429882,104.12,104.09,2.40236075]
[1770091274502,14.92945128,104.13,104.09,2.40236075]
[1770091274702,15.62320278,104.13,104.09,2.40236075]
[1770091275622,14.93105995,104.12,104.09,2.40236075]
[1770091275823,15.62427042,104.12,104.09,2.40236075]
[1770091277018,0.69267565,104.1,104.08,0.2]
[1770091277419,6.0180723,104.11,104.08,0.2]
[1770091277620,9.60614793,104.1,104.08,0.2]
[1770091279516,6.0170331,104.09,104.06,2.40236075]
[1770091279719,5.32592532,104.08,104.05,71.93475203]
[1770091280098,6.01652243,104.07,104.05,0.2]
[1770091280300,5.32592532,104.08,104.05,0.2]
[1770091280499,10.29531755,104.11,104.07,2.5108145]
[1770091280700,15.62124287,104.11,104.07,2.5108145]
[1770091282611,5.32592532,104.1,104.07,2.5108145]
[1770091283026,6.01502536,104.1,104.07,2.5108145]
[1770091283236,6.01502536,104.1,104.06,12.12019346]
[1770091283525,5.32592532,104.09,104.06,2.5108145]
[1770091284228,15.62178523,104.1,104.06,2.5108145]
[1770091284520,5.32592532,104.09,104.06,2.5108145]
[1770091284710,10.29585991,104.1,104.06,12.12060643]
[1770091284711,15.62178523,104.1,104.06,12.12060643]
[1770091285026,5.32592532,104.09,104.06,2.5108145]
[1770091285428,0.68765396,104.12,104.09,2.5108145]
[1770091285731,10.29103434,104.13,104.09,7.83673982]
[1770091286106,15.61695966,104.13,104.09,2.5108145]
[1770091286817,15.61695966,104.13,104.09,9.60669676]
[1770091287020,10.29103434,104.13,104.1,2.5108145]
[1770091287422,10.2896378,104.14,104.1,2.5108145]
[1770091287622,15.61556312,104.14,104.1,2.5108145]
[1770091289728,9.60292042,104.14,104.1,2.5108145]
[1770091289930,6.01172751,104.16,104.12,2.5108145]
[1770091290131,6.01172751,104.17,104.13,2.5108145]
[1770091290436,15.61186512,104.17,104.13,2.5108145]
[1770091292621,6.01039377,104.16,104.12,12.11505602]
[1770091292818,6.01039377,104.16,104.13,2.5108145]
[1770091293436,0.68446845,104.16,104.13,2.5108145]
[1770091294316,6.01039377,104.16,104.13,2.5108145]
[1770091294650,6.01039377,104.16,104.11,12.1156009]
[1770091294651,15.61111196,104.16,104.11,12.1156009]
[1770091294943,6.00952994,104.15,104.11,12.1156009]
[1770091295231,6.00910546,104.14,104.1,2.5108145]
[1770091295438,5.32592532,104.13,104.1,2.5108145]
[1770091295637,6.00910546,104.14,104.1,2.5108145]
[1770091296354,0.68276053,104.12,104.09,12.11745805]
[1770091296531,6.00868585,104.13,104.09,12.11745805]
[1770091296723,5.32592532,104.12,104.09,2.5108145]
[1770091296922,5.32592532,104.12,104.09,12.11780343]
[1770091297124,5.32592532,104.12,104.09,2.5108145]
[1770091297356,5.32592532,104.12,104.09,12.1176199]
[1770091297534,15.61286882,104.13,104.09,12.1176199]
[1770091297735,5.32592532,104.12,104.09,2.5108145]
[1770091298163,5.32592532,104.11,104.08,2.5108145]
[1770091298529,5.32592532,104.1,104.07,64.1108145]
[1770091298854,5.32592532,104.09,104.07,2.5108145]
[1770091300534,5.20092532,104.09,104.07,2.5108145]
[1770091300731,14.93270119,104.1,104.07,2.5108145]
[1770091302468,14.93124895,104.11,104.08,2.5108145]
[1770091302770,9.60478452,104.12,104.09,2.5108145]
[1770091303869,14.93070984,104.12,104.09,2.5108145]
[1770091304576,5.32592532,104.11,104.09,2.5108145]
[1770091305560,15.61093143,104.11,104.07,2.5108145]
[1770091305754,5.32592532,104.1,104.07,2.5108145]
[1770091306266,15.61093143,104.11,104.07,2.5108145]
[1770091306469,14.93173701,104.11,104.08,2.5108145]
[1770091306669,5.32592532,104.1,104.08,2.5108145]
[1770091308680,14.93207646,104.1,104.08,2.5108145]
[1770091310157,14.93207646,104.1,104.07,2.34249873]
[1770091310158,5.32592532,104.09,104.07,2.34249873]
[1770091311072,3.80592532,104.09,104.07,2.34249873]
[1770091312463,3.80592532,104.09,104.06,12.17488762]
[1770091312675,13.41301738,104.09,104.07,2.56556423]
[1770091314663,5.32592532,104.08,104.05,2.76556423]
[1770091316684,14.93440984,104.08,104.05,2.76556423]
[1770091320472,5.32592532,104.08,104.05,2.76556423]
[1770091320670,5.32592532,104.07,104.05,0.2]
[1770091320871,5.32592532,104.06,104.04,2.56556423]
[1770091321562,5.32592532,104.06,104.03,2.56556423]
[1770091321903,5.32592532,104.05,104.03,2.56556423]
[1770091322383,0.67278023,104.03,103.99,2.56556423]
[1770091322588,5.32592532,104.01,103.99,2.56556423]
[1770091323292,5.32592532,104.0,103.98,2.76556423]
[1770091323490,0.67248008,104.06,104.0,2.56556423]
[1770091323665,5.32592532,104.05,104.01,2.56556423]
[1770091324288,5.99810869,104.05,104.01,2.56556423]
[1770091324793,15.60951596,104.05,104.01,7.89148955]
[1770091325096,15.60951596,104.05,104.01,17.50578764]
[1770091326173,5.99752546,104.08,104.04,2.56556423]
[1770091326375,0.67160014,104.08,104.04,2.56556423]
[1770091326580,15.60593318,104.08,104.04,2.56556423]
[1770091327396,5.32592532,104.06,104.03,2.56556423]
[1770091327799,5.99723885,104.06,104.03,2.56556423]
[1770091328272,15.60742851,104.06,104.03,2.56556423]
[1770091328473,9.61018966,104.06,104.03,2.56556423]
[1770091328792,19.16631237,104.08,104.04,2.56556423]
[1770091333774,0.66966175,104.07,104.04,2.56556423]
[1770091335598,9.55652754,104.07,104.04,2.56556423]
[1770091336673,19.16546767,104.07,104.03,12.17779794]
[1770091337180,8.88686579,104.07,104.03,12.17779794]
[1770091337499,8.88686579,104.07,104.04,2.59490167]
[1770091338284,18.4962509,104.07,104.03,2.59490167]
[1770091339596,18.4962509,104.07,104.04,2.59490167]
[1770091341009,8.88686579,104.05,104.02,61.6]
[1770091341300,8.88686579,104.04,104.0,12.20978225]
[1770091341498,8.88686579,104.04,104.01,2.59490167]
[1770091342813,18.49846418,104.05,104.01,12.20931392]
[1770091343803,9.61159839,104.05,104.02,2.59490167]
[1770091344101,9.61032178,104.06,104.03,2.59490167]
[1770091344806,18.49609828,104.07,104.03,12.20744069]
[1770091345106,9.60923249,104.07,104.03,21.09430648]
[1770091347099,32.90841959,104.08,104.04,2.59490167]
[1770091347100,8.88686579,104.08,104.04,2.59490167]
[1770091348501,8.88686579,104.07,104.04,2.59490167]
[1770091349198,18.51677253,104.08,104.04,2.59490167]
[1770091349594,0.02173155,104.07,104.04,2.59490167]
[1770091351412,8.90859734,104.07,104.04,2.59490167]
[1770091351983,9.6070708,104.09,104.06,2.59490167]
[1770091352185,24.04541164,104.1,104.06,2.59490167]
[1770091352186,18.52175821,104.1,104.06,2.59490167]
[1770091352487,18.52175821,104.1,104.06,11.48176746]
[1770091352693,9.63489242,104.1,104.06,11.48176746]
[1770091353000,9.63455717,104.1,104.06,11.48176746]
[1770091353400,8.88686579,104.11,104.02,38.45382328]
[1770091353401,0.03472915,104.11,104.08,2.59490167]
[1770091354089,5.36082053,104.11,104.08,2.59490167]
[1770091356110,14.96625243,104.11,104.07,17.52964968]
[1770091356606,0.03472915,104.11,104.08,2.59490167]
[1770091356812,9.64822145,104.13,104.1,2.59490167]
[1770091356987,9.64822145,104.13,104.09,2.59490167]
[1770091356988,0.0440907,104.12,104.09,2.59490167]
[1770091357601,5.37018208,104.12,104.09,2.59490167]
[1770091357801,0.0440907,104.12,104.09,2.59490167]
[1770091358124,9.65127056,104.13,104.09,17.52778729]
[1770091358292,5.37624527,104.12,104.09,2.59490167]
[1770091358606,5.32609138,104.12,104.09,2.59490167]
[1770091361006,5.37624527,104.13,104.09,2.59490167]
[1770091361313,5.37624527,104.13,104.1,2.59490167]
[1770091362492,14.98042539,104.13,104.1,2.59490167]
[1770091363109,9.60418012,104.13,104.1,2.59490167]
[1770091363317,14.99498441,104.13,104.1,2.59490167]
[1770091364516,24.07085238,104.16,104.11,7.92099305]
[1770091364720,0.06752515,104.16,104.13,2.59490167]
[1770091364900,5.39361653,104.16,104.12,2.59490167]
[1770091365221,5.32609138,104.14,104.12,2.59490167]
[1770091365399,5.32609138,104.14,104.1,9.60582858]
[1770091365600,5.39639647,104.14,104.11,2.59490167]
[1770091366621,14.99943738,104.14,104.11,2.59490167]
[1770091367198,9.673346,104.14,104.11,2.59490167]
[1770091367519,5.32609138,104.13,104.11,2.59490167]
[1770091367701,9.673346,104.14,104.11,2.59490167]
[1770091367896,5.32609138,104.13,104.11,2.59490167]
[1770091369117,5.32609138,104.13,104.1,2.59490167]
[1770091369799,15.01078979,104.13,104.1,2.59490167]
[1770091370000,14.92968059,104.13,104.1,2.59490167]
[1770091371131,5.32609138,104.13,104.1,2.59490167]
[1770091371326,15.01010833,104.14,104.11,2.59490167]
[1770091372514,5.32609138,104.14,104.12,2.59490167]
[1770091372822,9.69546707,104.15,104.12,2.59490167]
[1770091373122,5.32609138,104.14,104.12,2.59490167]
[1770091373909,5.42249885,104.14,104.11,2.59490167]
[1770091374431,5.32609138,104.14,104.11,12.20012364]
[1770091375616,5.32609138,104.14,104.12,2.59490167]
[1770091376329,5.42975941,104.14,104.11,12.20012364]
[1770091376632,15.03265256,104.14,104.11,2.59490167]
[1770091377012,24.00344425,104.16,104.12,2.59490167]
[1770091377013,14.92768163,104.15,104.12,2.59490167]
[1770091377619,15.03071599,104.16,104.13,2.59490167]
[1770091379428,0.10366803,104.16,104.13,2.59490167]
[1770091379738,5.42975941,104.16,104.13,2.59490167]
[1770091380233,33.69739013,104.18,104.14,2.59490167]
[1770091380234,5.43677265,104.17,104.14,2.59490167]
[1770091380533,14.92440869,104.19,104.15,2.59490167]
[1770091380832,15.03737421,104.19,104.16,2.59490167]
[1770091381616,5.44131491,104.17,104.14,12.19673309]
[1770091381838,5.44131491,104.17,104.14,2.59490167]
[1770091382639,5.32609138,104.17,104.14,2.59490167]
[1770091382832,5.32609138,104.18,104.15,2.59490167]
[1770091383135,15.0418643,104.19,104.16,2.59490167]
[1770091383727,5.32609138,104.18,104.16,2.59490167]
[1770091383927,5.32609138,104.18,104.15,2.59490167]
[1770091384836,5.32609138,104.18,104.15,12.1963564]
[1770091385051,5.32609138,104.18,104.16,2.59490167]
[1770091385221,5.45009057,104.17,104.14,12.19728019]
[1770091385426,5.32609138,104.17,104.15,2.59490167]
[1770091386535,5.45222185,104.17,104.15,2.59490167]
[1770091387040,5.32609138,104.17,104.15,2.59490167]
[1770091387237,5.32609138,104.18,104.15,2.59490167]
[1770091387441,15.05259969,104.19,104.16,2.59490167]
[1770091389833,0.13237855,104.17,104.14,12.19649537]
[1770091390048,5.45846993,104.17,104.14,2.59490167]
[1770091390254,0.13441359,104.16,104.13,73.79780784]
[1770091390540,15.05467467,104.18,104.15,2.59490167]
[1770091391241,0.13642525,104.17,104.14,2.59490167]
[1770091391426,0.13642525,104.17,104.13,9.60289614]
[1770091391427,5.3211247,104.15,104.13,2.59490167]
[1770091391626,5.45754995,104.16,104.13,2.59490167]
[1770091392048,0.13642525,104.15,104.12,2.59490167]
[1770091392347,9.73806535,104.15,104.12,2.59490167]
[1770091393550,0.14037952,104.16,104.13,7.91602637]
[1770091394747,0.14232265,104.18,104.15,2.59490167]
[1770091395936,9.74195998,104.18,104.15,2.59490167]
[1770091396953,0.14614223,104.17,104.12,2.59490167]
[1770091397248,0.14801917,104.17,104.14,2.59490167]
[1770091397433,33.74458489,104.18,104.14,5.3211247]
[1770091397639,9.7476565,104.18,104.15,2.59490167]
[1770091398139,0.14801917,104.17,104.14,2.59490167]
[1770091398726,0.14801917,104.17,104.14,7.91602637]
[1770091399054,33.74644028,104.18,104.14,7.91602637]
[1770091399347,9.74951189,104.18,104.15,2.59490167]
[1770091399532,9.75004034,104.19,104.15,17.51750503]
[1770091399725,9.75004034,104.19,104.16,2.59490167]
[1770091400344,9.75004034,104.19,104.15,2.59490167]
[1770091400345,0.15531383,104.18,104.15,2.59490167]
[1770091400653,0.15531383,104.18,104.11,2.59490167]
[1770091400951,5.47643853,104.15,104.12,2.59490167]
[1770091401148,0.15531383,104.15,104.12,2.59490167]
[1770091401759,5.47643853,104.15,104.11,2.59490167]
[1770091401941,0.15708543,104.14,104.11,2.59490167]
[1770091402256,9.75990918,104.14,104.11,2.59490167]
[1770091402831,9.60282375,104.14,104.11,7.91602637]
[1770091404353,9.60282375,104.14,104.11,2.59490167]
[1770091404556,9.76510283,104.14,104.11,2.59490167]
[1770091405249,9.76510283,104.14,104.08,24.01942612]
[1770091405250,0.16397068,104.13,104.09,2.59490167]
[1770091405432,0.16397068,104.13,104.1,2.59490167]
[1770091406353,9.76738174,104.13,104.1,2.59490167]
[1770091407240,9.76988644,104.14,104.1,12.20092565]
[1770091407435,0.16729581,104.13,104.1,12.20092565]
[1770091408252,0.16729581,104.13,104.1,2.59490167]
[1770091408960,9.77152041,104.14,104.11,2.59490167]
[1770091409352,0.17054499,104.13,104.1,2.59490167]
[1770091409559,9.77313562,104.14,104.1,2.59490167]
[1770091409765,0.17054499,104.13,104.1,2.59490167]
[1770091411553,14.92371533,104.14,104.1,2.59490167]
[1770091411554,0.17371996,104.15,104.11,7.91602637]
[1770091411855,9.60153624,104.15,104.12,2.59490167]
[1770091412158,9.60101621,104.16,104.13,2.59490167]
[1770091412647,9.77389438,104.17,104.13,7.91602637]
[1770091412856,0.17528015,104.16,104.13,2.59490167]
[1770091413433,9.7760272,104.16,104.13,2.59490167]
[1770091415365,9.7760272,104.16,104.12,2.59490167]
[1770091415366,0.17985402,104.15,104.12,2.59490167]
[1770091415562,9.78167138,104.15,104.12,2.59490167]
[1770091416062,0.17985402,104.12,104.08,2.59490167]
[1770091416260,0.18134375,104.1,104.06,12.20446252]
[1770091416844,0.18134375,104.1,104.06,9.60956085]
[1770091417067,0.18134375,104.11,104.07,2.59490167]
[1770091417244,0.18281637,104.12,104.08,7.91602637]
[1770091417759,9.60522524,104.11,104.08,2.59490167]
[1770091418142,9.78804161,104.11,104.08,2.59490167]
[1770091418459,9.60522524,104.11,104.08,2.59490167]
[1770091418687,9.78901513,104.12,104.08,2.59490167]
[1770091419150,9.78901513,104.12,104.08,7.91602637]
[1770091419467,0.18571107,104.09,104.05,2.59490167]
[1770091419666,0.18571107,104.09,104.06,2.59490167]
[1770091419846,0.18571107,104.1,104.06,7.91602637]
[1770091420046,9.791859,104.1,104.06,7.91602637]
[1770091422262,9.791859,104.1,104.06,17.52573614]
[1770091422853,9.60535477,104.11,104.08,2.59490167]
[1770091423167,9.79665839,104.11,104.08,2.59490167]
[1770091423372,9.79665839,104.11,104.07,2.59490167]
[1770091423568,0.19130362,104.08,104.04,2.59490167]
[1770091423755,0.19130362,104.08,104.05,2.59490167]
[1770091423967,0.19130362,104.08,104.05,7.91602637]
[1770091424644,9.80023357,104.09,104.05,5.3211247]
[1770091424873,9.80023357,104.09,104.06,2.59490167]
[1770091425363,9.80052758,104.1,104.07,7.91602637]
[1770091425951,0.19400447,104.1,104.07,7.91602637]
[1770091426573,9.60573548,104.11,104.08,7.91602637]
[1770091426760,9.79977695,104.12,104.08,7.91602637]
[1770091426962,9.79977695,104.12,104.09,7.91602637]
[1770091427746,9.79977695,104.12,104.09,2.59490167]
[1770091427951,9.79977695,104.12,104.09,7.91602637]
[1770091428271,0.19794051,104.1,104.05,12.2055898]
[1770091428478,0.19794051,104.1,104.06,7.91602637]
[1770091429878,9.6070708,104.09,104.06,7.91602637]
[1770091430055,9.80629331,104.09,104.05,7.91602637]
[1770091430266,33.82397032,104.09,104.05,7.91602637]
[1770091433077,33.82397032,104.09,104.06,5.3211247]
[1770091433480,9.6070708,104.09,104.06,7.91602637]
[1770091433778,9.6070708,104.09,104.07,2.59490167]
[1770091435886,0.20896231,104.11,104.08,2.59490167]
[1770091436058,9.81453239,104.11,104.07,7.91602637]
[1770091436588,9.81453239,104.11,104.08,7.91602637]
[1770091438271,0.21238884,104.1,104.06,12.20400482]
[1770091438460,0.21238884,104.1,104.07,2.59490167]
[1770091438779,0.21238884,104.1,104.07,7.91602637]
[1770091439281,0.21350487,104.08,104.04,2.59490167]
[1770091439478,24.01618584,104.1,104.06,7.91602637]
[1770091439784,9.6070708,104.09,104.06,2.59490167]
[1770091439989,9.8200833,104.1,104.07,7.91602637]
[1770091440464,0.21350487,104.1,104.07,7.91602637]
[1770091440777,9.81937003,104.12,104.09,7.91602637]
[1770091440962,9.60476194,104.12,104.1,5.3211247]
[1770091441364,9.60476194,104.12,104.09,7.91602637]
[1770091441875,0.21569864,104.12,104.09,2.59490167]
[1770091442074,0.21569864,104.12,104.08,7.91602637]
[1770091442291,0.21677667,104.1,104.05,7.91602637]
[1770091442882,0.21677667,104.12,104.08,7.91602637]
[1770091443667,0.21677667,104.12,104.09,5.3211247]